[Event "Titled Tuesday Blitz September 28 2021"]
[White "Mirzoev, Azer"]
[Black "Spitzl, Vinzent"]
[WhiteFideId "13400304"]
[BlackFideId "12901253"]
[WhiteElo "2525"]
[BlackElo "2160"]
[Result "1-0"]
[Round "09"]
[TimeControl "180+1"]
[Date "2021.09.28"]
[WhiteClock "0:02:01"]
[BlackClock "0:00:53"]

1. c4 {[%clk 0:02:59]}  c5 {[%clk 0:02:58]} 2. Nc3 {[%clk 0:02:59]}  Nc6 {[%clk 0:02:58]} 3. g3 {[%clk 0:02:59]}  g6 {[%clk 0:02:56]} 4. Bg2 {[%clk 0:03:00]}  Bg7 {[%clk 0:02:56]} 5. a3 {[%clk 0:03:01]}  e5 {[%clk 0:02:51]} 6. Rb1 {[%clk 0:03:01]}  a5 {[%clk 0:02:50]} 7. Nf3 {[%clk 0:02:58]}  Nge7 {[%clk 0:02:50]} 8. d3 {[%clk 0:02:58]}  O-O {[%clk 0:02:45]} 9. Nd2 {[%clk 0:02:58]}  d6 {[%clk 0:02:37]} 10. O-O {[%clk 0:02:58]}  Be6 {[%clk 0:02:37]} 11. Nd5 {[%clk 0:02:57]}  Rb8 {[%clk 0:02:22]} 12. b3 {[%clk 0:02:56]}  Qd7 {[%clk 0:02:18]} 13. Bb2 {[%clk 0:02:55]}  Bh3 {[%clk 0:02:17]} 14. Nb6 {[%clk 0:02:48]}  Qe6 {[%clk 0:02:07]} 15. e4 {[%clk 0:02:48]}  Bxg2 {[%clk 0:02:04]} 16. Kxg2 {[%clk 0:02:48]}  f5 {[%clk 0:02:04]} 17. Bc3 {[%clk 0:02:42]}  Nc8 {[%clk 0:01:54]} 18. Nd5 {[%clk 0:02:41]}  b6 {[%clk 0:01:40]} 19. b4 {[%clk 0:02:40]}  axb4 {[%clk 0:01:39]} 20. axb4 {[%clk 0:02:41]}  cxb4 {[%clk 0:01:39]} 21. Nxb4 {[%clk 0:02:38]}  N8e7 {[%clk 0:01:38]} 22. Nd5 {[%clk 0:02:37]}  Nc8 {[%clk 0:01:25]} 23. Rb5 {[%clk 0:02:30]}  Bh6 {[%clk 0:01:19]} 24. f3 {[%clk 0:02:28]}  Bxd2 {[%clk 0:01:15]} 25. Qxd2 {[%clk 0:02:27]}  N6a7 {[%clk 0:01:13]} 26. Rb2 {[%clk 0:02:22]}  Nc6 {[%clk 0:01:08]} 27. Qe3 {[%clk 0:02:17]}  fxe4 {[%clk 0:01:07]} 28. dxe4 {[%clk 0:02:12]}  Ra8 {[%clk 0:00:53]} 29. Nc7 {[%clk 0:02:01]} 1-0


[Site "https://www.chess.com"]

[Event "Titled Tuesday Blitz September 28 2021"]
[White "Navalgund, Niranjan"]
[Black "Williams, Simon K"]
[WhiteFideId "5030854"]
[BlackFideId "404454"]
[WhiteElo "2290"]
[BlackElo "2468"]
[Result "1-0"]
[Round "09"]
[TimeControl "180+1"]
[Date "2021.09.28"]
[WhiteClock "0:02:03"]
[BlackClock "0:00:34"]

1. e4 {[%clk 0:03:00]}  e6 {[%clk 0:02:55]} 2. g3 {[%clk 0:02:58]}  d5 {[%clk 0:02:53]} 3. Bg2 {[%clk 0:02:58]}  Nf6 {[%clk 0:02:51]} 4. Nc3 {[%clk 0:02:58]}  d4 {[%clk 0:02:49]} 5. Nce2 {[%clk 0:02:58]}  d3 {[%clk 0:02:41]} 6. cxd3 {[%clk 0:02:59]}  Nc6 {[%clk 0:02:41]} 7. d4 {[%clk 0:02:56]}  Nxd4 {[%clk 0:02:39]} 8. Nxd4 {[%clk 0:02:57]}  Qxd4 {[%clk 0:02:39]} 9. d3 {[%clk 0:02:57]}  Bb4+ {[%clk 0:02:33]} 10. Bd2 {[%clk 0:02:57]}  a5 {[%clk 0:02:15]} 11. Nf3 {[%clk 0:02:57]}  Qxd3 {[%clk 0:02:06]} 12. Qe2 {[%clk 0:02:46]}  Bxd2+ {[%clk 0:02:05]} 13. Nxd2 {[%clk 0:02:46]}  Qxe2+ {[%clk 0:02:03]} 14. Kxe2 {[%clk 0:02:47]}  b6 {[%clk 0:01:51]} 15. Rhc1 {[%clk 0:02:47]}  Ba6+ {[%clk 0:01:50]} 16. Ke1 {[%clk 0:02:48]}  O-O-O {[%clk 0:01:48]} 17. Rc3 {[%clk 0:02:45]}  Rd7 {[%clk 0:01:36]} 18. Rac1 {[%clk 0:02:45]}  e5 {[%clk 0:01:34]} 19. Bh3 {[%clk 0:02:44]}  c5 {[%clk 0:01:32]} 20. a3 {[%clk 0:02:39]}  Kb7 {[%clk 0:01:25]} 21. Bxd7 {[%clk 0:02:38]}  Nxd7 {[%clk 0:01:26]} 22. b4 {[%clk 0:02:39]}  axb4 {[%clk 0:01:24]} 23. axb4 {[%clk 0:02:39]}  f6 {[%clk 0:01:13]} 24. f3 {[%clk 0:02:27]}  h5 {[%clk 0:01:12]} 25. h4 {[%clk 0:02:26]}  Bb5 {[%clk 0:01:10]} 26. Rb1 {[%clk 0:02:11]}  Kc6 {[%clk 0:01:07]} 27. bxc5 {[%clk 0:02:10]}  Nxc5 {[%clk 0:01:05]} 28. Nb3 {[%clk 0:02:11]}  Rc8 {[%clk 0:00:43]} 29. Kf2 {[%clk 0:02:07]}  Ba4 {[%clk 0:00:34]} 30. Nxc5 {[%clk 0:02:03]}  bxc5 {[%clk 0:00:34]} 31. Rxc5+ {[%clk 0:02:03]} 1-0


[Site "https://www.chess.com"]

[Event "Titled Tuesday Blitz September 28 2021"]
[White "Nesterov, Arseniy"]
[Black "Shtembuliak, Evgeny"]
[WhiteFideId "24198455"]
[BlackFideId "14113325"]
[WhiteElo "2494"]
[BlackElo "2504"]
[Result "0-1"]
[Round "09"]
[TimeControl "180+1"]
[Date "2021.09.28"]
[WhiteClock "0:00:07"]
[BlackClock "0:00:19"]

1. d4 {[%clk 0:03:00]}  Nf6 {[%clk 0:02:58]} 2. c4 {[%clk 0:03:01]}  g6 {[%clk 0:02:59]} 3. Nc3 {[%clk 0:03:01]}  d5 {[%clk 0:02:59]} 4. cxd5 {[%clk 0:03:02]}  Nxd5 {[%clk 0:03:00]} 5. e4 {[%clk 0:03:02]}  Nxc3 {[%clk 0:03:01]} 6. bxc3 {[%clk 0:03:03]}  Bg7 {[%clk 0:03:02]} 7. Qa4+ {[%clk 0:03:03]}  Qd7 {[%clk 0:03:00]} 8. Bb5 {[%clk 0:03:03]}  c6 {[%clk 0:03:00]} 9. Be2 {[%clk 0:03:03]}  O-O {[%clk 0:02:51]} 10. Qa3 {[%clk 0:03:03]}  b6 {[%clk 0:02:48]} 11. Nf3 {[%clk 0:03:01]}  c5 {[%clk 0:02:44]} 12. O-O {[%clk 0:02:58]}  Bb7 {[%clk 0:02:38]} 13. d5 {[%clk 0:02:58]}  e6 {[%clk 0:02:37]} 14. Be3 {[%clk 0:02:57]}  exd5 {[%clk 0:02:37]} 15. Rad1 {[%clk 0:02:58]}  d4 {[%clk 0:01:57]} 16. cxd4 {[%clk 0:02:56]}  Bxe4 {[%clk 0:01:57]} 17. dxc5 {[%clk 0:02:52]}  Qb7 {[%clk 0:01:57]} 18. Rfe1 {[%clk 0:02:34]}  Nd7 {[%clk 0:01:45]} 19. Ng5 {[%clk 0:02:13]}  Bc6 {[%clk 0:01:41]} 20. Bc4 {[%clk 0:01:51]}  Ne5 {[%clk 0:01:40]} 21. Ba6 {[%clk 0:01:46]}  Qc7 {[%clk 0:01:14]} 22. Bf4 {[%clk 0:01:40]}  Rfe8 {[%clk 0:01:15]} 23. Qb3 {[%clk 0:01:24]}  b5 {[%clk 0:00:45]} 24. Bxb5 {[%clk 0:01:09]}  Rab8 {[%clk 0:00:41]} 25. Bxc6 {[%clk 0:01:08]}  Qxc6 {[%clk 0:00:36]} 26. Qd5 {[%clk 0:00:39]}  Qxd5 {[%clk 0:00:27]} 27. Rxd5 {[%clk 0:00:40]}  h6 {[%clk 0:00:28]} 28. Ne4 {[%clk 0:00:17]}  f5 {[%clk 0:00:27]} 29. Nd2 {[%clk 0:00:17]}  Nc6 {[%clk 0:00:21]} 30. Rxe8+ {[%clk 0:00:11]}  Rxe8 {[%clk 0:00:22]} 31. Kf1 {[%clk 0:00:12]}  Nd4 {[%clk 0:00:21]} 32. g3 {[%clk 0:00:08]}  Rc8 {[%clk 0:00:19]} 33. Nc4 {[%clk 0:00:05]}  Ne6 {[%clk 0:00:17]} 34. Be3 {[%clk 0:00:06]}  Bf8 {[%clk 0:00:17]} 35. Nd6 {[%clk 0:00:04]}  Rc6 {[%clk 0:00:18]} 36. Ke2 {[%clk 0:00:04]}  Kg7 {[%clk 0:00:17]} 37. Kd3 {[%clk 0:00:04]}  Be7 {[%clk 0:00:17]} 38. Kc4 {[%clk 0:00:04]}  a6 {[%clk 0:00:18]} 39. h4 {[%clk 0:00:03]}  Kf6 {[%clk 0:00:18]} 40. h5 {[%clk 0:00:03]}  Ng7 {[%clk 0:00:17]} 41. hxg6 {[%clk 0:00:03]}  Kxg6 {[%clk 0:00:18]} 42. Bd4 {[%clk 0:00:04]}  Ne6 {[%clk 0:00:16]} 43. Nxf5 {[%clk 0:00:04]}  Bf8 {[%clk 0:00:12]} 44. Nd6 {[%clk 0:00:04]}  Nc7 {[%clk 0:00:12]} 45. Re5 {[%clk 0:00:04]}  Bxd6 {[%clk 0:00:12]} 46. Re4 {[%clk 0:00:03]}  Bf8 {[%clk 0:00:12]} 47. f4 {[%clk 0:00:03]}  Kf7 {[%clk 0:00:13]} 48. f5 {[%clk 0:00:03]}  Ne8 {[%clk 0:00:13]} 49. Kd5 {[%clk 0:00:03]}  Rc8 {[%clk 0:00:13]} 50. Re6 {[%clk 0:00:03]}  Rd8+ {[%clk 0:00:14]} 51. Kc4 {[%clk 0:00:03]}  Rc8 {[%clk 0:00:14]} 52. Be5 {[%clk 0:00:03]}  Rxc5+ {[%clk 0:00:14]} 53. Kd4 {[%clk 0:00:04]}  Ra5 {[%clk 0:00:14]} 54. g4 {[%clk 0:00:03]}  Rxa2 {[%clk 0:00:14]} 55. Rb6 {[%clk 0:00:04]}  Ra4+ {[%clk 0:00:14]} 56. Kd5 {[%clk 0:00:04]}  Ra5+ {[%clk 0:00:14]} 57. Ke4 {[%clk 0:00:04]}  Ra4+ {[%clk 0:00:14]} 58. Kd5 {[%clk 0:00:05]}  Rxg4 {[%clk 0:00:15]} 59. Rb7+ {[%clk 0:00:05]}  Kg8 {[%clk 0:00:15]} 60. f6 {[%clk 0:00:04]}  Nxf6+ {[%clk 0:00:10]} 61. Bxf6 {[%clk 0:00:05]}  a5 {[%clk 0:00:10]} 62. Ra7 {[%clk 0:00:05]}  a4 {[%clk 0:00:10]} 63. Ke6 {[%clk 0:00:05]}  a3 {[%clk 0:00:11]} 64. Kf5 {[%clk 0:00:05]}  Rc4 {[%clk 0:00:11]} 65. Be7 {[%clk 0:00:05]}  Bxe7 {[%clk 0:00:10]} 66. Rxe7 {[%clk 0:00:06]}  Ra4 {[%clk 0:00:10]} 67. Re1 {[%clk 0:00:03]}  Kf8 {[%clk 0:00:11]} 68. Ra1 {[%clk 0:00:04]}  a2 {[%clk 0:00:10]} 69. Ke5 {[%clk 0:00:05]}  Ke7 {[%clk 0:00:11]} 70. Kd5 {[%clk 0:00:05]}  h5 {[%clk 0:00:12]} 71. Kc5 {[%clk 0:00:05]}  Ra8 {[%clk 0:00:12]} 72. Kb5 {[%clk 0:00:06]}  Kf6 {[%clk 0:00:13]} 73. Kb4 {[%clk 0:00:07]}  Kg5 {[%clk 0:00:13]} 74. Kb3 {[%clk 0:00:07]}  h4 {[%clk 0:00:14]} 75. Kb2 {[%clk 0:00:08]}  Kf4 {[%clk 0:00:14]} 76. Rf1+ {[%clk 0:00:07]}  Kg3 {[%clk 0:00:15]} 77. Ka1 {[%clk 0:00:08]}  h3 {[%clk 0:00:15]} 78. Rf7 {[%clk 0:00:07]}  h2 {[%clk 0:00:16]} 79. Rg7+ {[%clk 0:00:08]}  Kf2 {[%clk 0:00:16]} 80. Rf7+ {[%clk 0:00:09]}  Kg1 {[%clk 0:00:17]} 81. Rg7+ {[%clk 0:00:09]}  Kh1 {[%clk 0:00:17]} 82. Rg6 {[%clk 0:00:10]}  Ra4 {[%clk 0:00:17]} 83. Rg5 {[%clk 0:00:10]}  Rf4 {[%clk 0:00:17]} 84. Rg6 {[%clk 0:00:07]}  Rf1+ {[%clk 0:00:16]} 85. Kxa2 {[%clk 0:00:07]}  Rg1 {[%clk 0:00:17]} 86. Rh6 {[%clk 0:00:07]}  Kg2 {[%clk 0:00:18]} 87. Rg6+ {[%clk 0:00:07]}  Kf3 {[%clk 0:00:18]} 88. Rf6+ {[%clk 0:00:07]}  Ke4 {[%clk 0:00:19]} 0-1


[Site "https://www.chess.com"]

[Event "Titled Tuesday Blitz September 28 2021"]
[White "Nguyen, Ngoc Truong Son"]
[Black "Wadsworth, Matthew J"]
[WhiteFideId "12401110"]
[BlackFideId "415804"]
[WhiteElo "2596"]
[BlackElo "2293"]
[Result "0-1"]
[Round "09"]
[TimeControl "180+1"]
[Date "2021.09.28"]
[WhiteClock "0:00:07"]
[BlackClock "0:00:28"]

1. d4 {[%clk 0:03:00]}  Nf6 {[%clk 0:02:57]} 2. Nf3 {[%clk 0:02:59]}  c5 {[%clk 0:02:57]} 3. d5 {[%clk 0:02:58]}  e6 {[%clk 0:02:58]} 4. Nc3 {[%clk 0:02:58]}  d6 {[%clk 0:02:58]} 5. e4 {[%clk 0:02:58]}  exd5 {[%clk 0:02:59]} 6. exd5 {[%clk 0:02:59]}  Be7 {[%clk 0:02:58]} 7. Be2 {[%clk 0:02:59]}  O-O {[%clk 0:02:57]} 8. O-O {[%clk 0:02:59]}  Na6 {[%clk 0:02:57]} 9. h3 {[%clk 0:02:49]}  Nc7 {[%clk 0:02:57]} 10. Bc4 {[%clk 0:02:40]}  Rb8 {[%clk 0:02:55]} 11. a4 {[%clk 0:02:40]}  b6 {[%clk 0:02:55]} 12. Re1 {[%clk 0:02:19]}  h6 {[%clk 0:02:53]} 13. Bf4 {[%clk 0:02:10]}  Re8 {[%clk 0:02:52]} 14. Qd3 {[%clk 0:01:58]}  a6 {[%clk 0:02:48]} 15. Re3 {[%clk 0:01:54]}  Bf8 {[%clk 0:02:44]} 16. Rae1 {[%clk 0:01:52]}  Rxe3 {[%clk 0:02:43]} 17. fxe3 {[%clk 0:01:48]}  Qd7 {[%clk 0:02:37]} 18. e4 {[%clk 0:01:46]}  b5 {[%clk 0:02:37]} 19. axb5 {[%clk 0:01:46]}  axb5 {[%clk 0:02:37]} 20. Ba2 {[%clk 0:01:46]}  b4 {[%clk 0:02:32]} 21. Nd1 {[%clk 0:01:45]}  Ba6 {[%clk 0:02:29]} 22. Bc4 {[%clk 0:01:45]}  Bxc4 {[%clk 0:02:22]} 23. Qxc4 {[%clk 0:01:45]}  Qb5 {[%clk 0:02:16]} 24. Qxb5 {[%clk 0:01:31]}  Nxb5 {[%clk 0:02:16]} 25. Nf2 {[%clk 0:01:16]}  Ra8 {[%clk 0:02:13]} 26. Nd2 {[%clk 0:01:13]}  Nd4 {[%clk 0:01:45]} 27. c3 {[%clk 0:01:12]}  bxc3 {[%clk 0:01:44]} 28. bxc3 {[%clk 0:01:13]}  Nb5 {[%clk 0:01:44]} 29. c4 {[%clk 0:01:13]}  Nd4 {[%clk 0:01:41]} 30. e5 {[%clk 0:01:13]}  dxe5 {[%clk 0:01:38]} 31. Bxe5 {[%clk 0:01:14]}  Ra2 {[%clk 0:01:21]} 32. Bxf6 {[%clk 0:00:31]}  Rxd2 {[%clk 0:01:16]} 33. Bxd4 {[%clk 0:00:28]}  Rxd4 {[%clk 0:01:15]} 34. Re4 {[%clk 0:00:24]}  Rd2 {[%clk 0:01:11]} 35. Kf1 {[%clk 0:00:21]}  f5 {[%clk 0:01:09]} 36. Re2 {[%clk 0:00:12]}  Rd4 {[%clk 0:01:08]} 37. Rc2 {[%clk 0:00:12]}  Bd6 {[%clk 0:01:03]} 38. Ke2 {[%clk 0:00:12]}  Kf7 {[%clk 0:01:03]} 39. Nd1 {[%clk 0:00:11]}  Kf6 {[%clk 0:00:58]} 40. Nb2 {[%clk 0:00:10]}  g5 {[%clk 0:00:56]} 41. Rd2 {[%clk 0:00:09]}  Ke5 {[%clk 0:00:53]} 42. Nd3+ {[%clk 0:00:08]}  Kf6 {[%clk 0:00:53]} 43. Nb2 {[%clk 0:00:08]}  Re4+ {[%clk 0:00:51]} 44. Kd3 {[%clk 0:00:08]}  Be5 {[%clk 0:00:49]} 45. Na4 {[%clk 0:00:07]}  Rd4+ {[%clk 0:00:48]} 46. Kc3 {[%clk 0:00:07]}  Rxd5+ {[%clk 0:00:46]} 47. Kc2 {[%clk 0:00:07]}  Rxd2+ {[%clk 0:00:45]} 48. Kxd2 {[%clk 0:00:07]}  Bd4 {[%clk 0:00:45]} 49. Nb6 {[%clk 0:00:08]}  Ke5 {[%clk 0:00:45]} 50. Kd3 {[%clk 0:00:08]}  Kf4 {[%clk 0:00:44]} 51. Ke2 {[%clk 0:00:08]}  Kg3 {[%clk 0:00:44]} 52. Kf1 {[%clk 0:00:08]}  f4 {[%clk 0:00:43]} 53. Nd5 {[%clk 0:00:07]}  f3 {[%clk 0:00:42]} 54. gxf3 {[%clk 0:00:06]}  Kxf3 {[%clk 0:00:41]} 55. Ne7 {[%clk 0:00:07]}  h5 {[%clk 0:00:35]} 56. Nf5 {[%clk 0:00:07]}  Be5 {[%clk 0:00:28]} 0-1


[Site "https://www.chess.com"]

[Event "Titled Tuesday Blitz September 28 2021"]
[White "Onyshchuk, Volodymyr"]
[Black "Bologan, Victor"]
[WhiteFideId "14114038"]
[BlackFideId "13900048"]
[WhiteElo "2860"]
[BlackElo "2755"]
[Result "1-0"]
[Round "09"]
[TimeControl "180+1"]
[Date "2021.09.28"]
[WhiteClock "0:00:16"]
[BlackClock "0:00:02"]

1. Nf3 {[%clk 0:03:00]}  d6 {[%clk 0:02:56]} 2. g3 {[%clk 0:03:00]}  e5 {[%clk 0:02:56]} 3. Bg2 {[%clk 0:03:00]}  f5 {[%clk 0:02:56]} 4. c4 {[%clk 0:02:56]}  Nf6 {[%clk 0:02:56]} 5. Nc3 {[%clk 0:02:56]}  g6 {[%clk 0:02:54]} 6. O-O {[%clk 0:02:49]}  Bg7 {[%clk 0:02:54]} 7. d3 {[%clk 0:02:50]}  O-O {[%clk 0:02:53]} 8. Rb1 {[%clk 0:02:49]}  h6 {[%clk 0:02:52]} 9. b4 {[%clk 0:02:49]}  g5 {[%clk 0:02:51]} 10. a4 {[%clk 0:02:45]}  f4 {[%clk 0:02:47]} 11. a5 {[%clk 0:02:38]}  c6 {[%clk 0:02:37]} 12. Ba3 {[%clk 0:02:25]}  a6 {[%clk 0:02:32]} 13. Qb3 {[%clk 0:02:17]}  Be6 {[%clk 0:02:24]} 14. Qc2 {[%clk 0:02:10]}  Nbd7 {[%clk 0:02:12]} 15. b5 {[%clk 0:02:06]}  c5 {[%clk 0:02:06]} 16. bxa6 {[%clk 0:01:50]}  bxa6 {[%clk 0:02:02]} 17. Nd2 {[%clk 0:01:45]}  Ra7 {[%clk 0:01:52]} 18. Qa4 {[%clk 0:01:42]}  Qe8 {[%clk 0:01:45]} 19. Nde4 {[%clk 0:01:38]}  Qh5 {[%clk 0:01:38]} 20. Qc6 {[%clk 0:01:21]}  Ng4 {[%clk 0:01:08]} 21. h3 {[%clk 0:01:09]}  Ngf6 {[%clk 0:01:07]} 22. g4 {[%clk 0:01:03]}  Bxg4 {[%clk 0:01:06]} 23. hxg4 {[%clk 0:01:03]}  Nxg4 {[%clk 0:01:05]} 24. Rfc1 {[%clk 0:01:02]}  Qh2+ {[%clk 0:01:03]} 25. Kf1 {[%clk 0:01:02]}  Ne3+ {[%clk 0:00:56]} 26. Ke1 {[%clk 0:00:50]}  Nxg2+ {[%clk 0:00:39]} 27. Kd2 {[%clk 0:00:48]}  f3 {[%clk 0:00:28]} 28. Rh1 {[%clk 0:00:44]}  Qf4+ {[%clk 0:00:26]} 29. e3 {[%clk 0:00:44]}  Qf7 {[%clk 0:00:10]} 30. Nxd6 {[%clk 0:00:43]}  Qe6 {[%clk 0:00:09]} 31. Qd5 {[%clk 0:00:42]}  Qxd5 {[%clk 0:00:09]} 32. Nxd5 {[%clk 0:00:42]}  g4 {[%clk 0:00:07]} 33. Ne4 {[%clk 0:00:40]}  Rd8 {[%clk 0:00:05]} 34. Rh5 {[%clk 0:00:28]}  Kf7 {[%clk 0:00:04]} 35. Bxc5 {[%clk 0:00:17]}  Nxc5 {[%clk 0:00:04]} 36. Nxc5 {[%clk 0:00:17]}  Kg6 {[%clk 0:00:04]} 37. Rhh1 {[%clk 0:00:16]}  h5 {[%clk 0:00:04]} 38. Rb6+ {[%clk 0:00:16]}  Kg5 {[%clk 0:00:03]} 39. Ne4+ {[%clk 0:00:16]}  Kf5 {[%clk 0:00:02]} 40. Rxh5# {[%clk 0:00:16]} 1-0


[Site "https://www.chess.com"]

[Event "Titled Tuesday Blitz September 28 2021"]
[White "Perez Ponsa, Federico"]
[Black "Andreikin, Dmitry"]
[WhiteFideId "117927"]
[BlackFideId "4158814"]
[WhiteElo "2874"]
[BlackElo "3029"]
[Result "1-0"]
[Round "09"]
[TimeControl "180+1"]
[Date "2021.09.28"]
[WhiteClock "0:01:17"]
[BlackClock "0:00:06"]

1. d4 {[%clk 0:03:00]}  d5 {[%clk 0:02:59]} 2. Nf3 {[%clk 0:03:01]}  Nf6 {[%clk 0:02:59]} 3. Bf4 {[%clk 0:03:02]}  c5 {[%clk 0:02:57]} 4. e3 {[%clk 0:03:02]}  Nc6 {[%clk 0:02:57]} 5. Nbd2 {[%clk 0:03:03]}  g6 {[%clk 0:02:56]} 6. c3 {[%clk 0:02:57]}  Bg7 {[%clk 0:02:56]} 7. Be2 {[%clk 0:02:58]}  O-O {[%clk 0:02:56]} 8. O-O {[%clk 0:02:57]}  Nh5 {[%clk 0:02:52]} 9. Bg5 {[%clk 0:02:57]}  h6 {[%clk 0:02:52]} 10. Bh4 {[%clk 0:02:57]}  g5 {[%clk 0:02:49]} 11. Ne1 {[%clk 0:02:55]}  gxh4 {[%clk 0:02:46]} 12. Bxh5 {[%clk 0:02:55]}  e5 {[%clk 0:02:47]} 13. dxe5 {[%clk 0:02:45]}  Nxe5 {[%clk 0:02:45]} 14. Ndf3 {[%clk 0:02:45]}  Be6 {[%clk 0:02:36]} 15. Nxe5 {[%clk 0:02:40]}  Bxe5 {[%clk 0:02:37]} 16. Nd3 {[%clk 0:02:39]}  Bd6 {[%clk 0:02:34]} 17. Qf3 {[%clk 0:02:29]}  Qg5 {[%clk 0:02:31]} 18. h3 {[%clk 0:02:23]}  Rad8 {[%clk 0:02:23]} 19. Rad1 {[%clk 0:02:23]}  Kh8 {[%clk 0:02:16]} 20. Nf4 {[%clk 0:02:21]}  Rg8 {[%clk 0:02:12]} 21. Kh1 {[%clk 0:02:16]}  Qe5 {[%clk 0:02:02]} 22. Bg4 {[%clk 0:02:09]}  f5 {[%clk 0:01:46]} 23. Bh5 {[%clk 0:02:06]}  Rg5 {[%clk 0:01:40]} 24. Rd2 {[%clk 0:01:58]}  Bc7 {[%clk 0:01:32]} 25. Rfd1 {[%clk 0:01:58]}  Bg8 {[%clk 0:01:31]} 26. Qe2 {[%clk 0:01:51]}  d4 {[%clk 0:00:35]} 27. cxd4 {[%clk 0:01:28]}  cxd4 {[%clk 0:00:35]} 28. Rxd4 {[%clk 0:01:29]}  Rxd4 {[%clk 0:00:35]} 29. Rxd4 {[%clk 0:01:29]}  Bxa2 {[%clk 0:00:34]} 30. Bf3 {[%clk 0:01:28]}  Bf7 {[%clk 0:00:24]} 31. Rd7 {[%clk 0:01:22]}  Be8 {[%clk 0:00:19]} 32. Rd5 {[%clk 0:01:22]}  Qe7 {[%clk 0:00:19]} 33. Qd1 {[%clk 0:01:22]}  Bc6 {[%clk 0:00:18]} 34. Rd4 {[%clk 0:01:19]}  Be5 {[%clk 0:00:15]} 35. Rd8+ {[%clk 0:01:17]}  Kh7 {[%clk 0:00:12]} 36. Bxc6 {[%clk 0:01:17]}  bxc6 {[%clk 0:00:12]} 37. Rd7 {[%clk 0:01:17]}  Rg7 {[%clk 0:00:11]} 38. Rxe7 {[%clk 0:01:18]}  Rxe7 {[%clk 0:00:11]} 39. Qc2 {[%clk 0:01:18]}  Rf7 {[%clk 0:00:10]} 40. Qxc6 {[%clk 0:01:18]}  Rc7 {[%clk 0:00:09]} 41. Qg6+ {[%clk 0:01:17]}  Kh8 {[%clk 0:00:07]} 42. Qe8+ {[%clk 0:01:17]}  Kh7 {[%clk 0:00:05]} 43. Qxe5 {[%clk 0:01:18]}  Rf7 {[%clk 0:00:05]} 44. Qe6 {[%clk 0:01:18]}  Kg7 {[%clk 0:00:05]} 45. Qg6+ {[%clk 0:01:16]}  Kf8 {[%clk 0:00:04]} 46. Qxh6+ {[%clk 0:01:17]}  Ke7 {[%clk 0:00:04]} 47. Qxh4+ {[%clk 0:01:17]}  Kd6 {[%clk 0:00:05]} 48. Qh5 {[%clk 0:01:17]}  Kc5 {[%clk 0:00:05]} 49. Qxf7 {[%clk 0:01:17]}  Kb4 {[%clk 0:00:05]} 50. Qd5 {[%clk 0:01:17]}  a5 {[%clk 0:00:06]} 51. Nd3+ {[%clk 0:01:17]}  Ka4 {[%clk 0:00:06]} 52. Qc4# {[%clk 0:01:17]} 1-0


[Site "https://www.chess.com"]

[Event "Titled Tuesday Blitz September 28 2021"]
[White "Quintiliano Pinto, Renato R."]
[Black "Sokolovsky, Yahli"]
[WhiteFideId "2117568"]
[BlackFideId "2820242"]
[WhiteElo "2439"]
[BlackElo "1770"]
[Result "1-0"]
[Round "09"]
[TimeControl "180+1"]
[Date "2021.09.28"]
[WhiteClock "0:00:17"]
[BlackClock "0:00:17"]

1. d4 {[%clk 0:03:00]}  d6 {[%clk 0:02:59]} 2. e4 {[%clk 0:03:00]}  g6 {[%clk 0:02:59]} 3. Nc3 {[%clk 0:02:59]}  Bg7 {[%clk 0:02:59]} 4. g3 {[%clk 0:02:59]}  a6 {[%clk 0:02:47]} 5. Bg2 {[%clk 0:02:57]}  b5 {[%clk 0:02:47]} 6. a3 {[%clk 0:02:57]}  Bb7 {[%clk 0:02:47]} 7. Nge2 {[%clk 0:02:57]}  Nf6 {[%clk 0:02:47]} 8. h3 {[%clk 0:02:55]}  O-O {[%clk 0:02:47]} 9. Bg5 {[%clk 0:02:54]}  h6 {[%clk 0:02:46]} 10. Be3 {[%clk 0:02:54]}  Nbd7 {[%clk 0:02:46]} 11. Qd2 {[%clk 0:02:50]}  Kh7 {[%clk 0:02:47]} 12. g4 {[%clk 0:02:28]}  c5 {[%clk 0:02:44]} 13. g5 {[%clk 0:02:21]}  hxg5 {[%clk 0:02:44]} 14. Bxg5 {[%clk 0:02:21]}  cxd4 {[%clk 0:02:38]} 15. Nxd4 {[%clk 0:02:20]}  Qb6 {[%clk 0:02:39]} 16. h4 {[%clk 0:01:56]}  Nxe4 {[%clk 0:02:25]} 17. Nxe4 {[%clk 0:01:55]}  Qxd4 {[%clk 0:02:24]} 18. Qxd4 {[%clk 0:01:52]}  Bxd4 {[%clk 0:02:25]} 19. O-O-O {[%clk 0:01:38]}  Bg7 {[%clk 0:01:47]} 20. Bxe7 {[%clk 0:01:34]}  Rfe8 {[%clk 0:01:47]} 21. Ng5+ {[%clk 0:01:32]}  Kg8 {[%clk 0:01:43]} 22. Bxb7 {[%clk 0:01:33]}  Rab8 {[%clk 0:01:37]} 23. Bd5 {[%clk 0:01:13]}  Rxe7 {[%clk 0:01:34]} 24. Rhe1 {[%clk 0:01:12]}  Be5 {[%clk 0:01:12]} 25. Kb1 {[%clk 0:00:58]}  Kf8 {[%clk 0:00:36]} 26. Nxf7 {[%clk 0:00:32]}  Rxf7 {[%clk 0:00:33]} 27. Bxf7 {[%clk 0:00:33]}  Kxf7 {[%clk 0:00:34]} 28. f4 {[%clk 0:00:32]}  Bf6 {[%clk 0:00:27]} 29. Rxd6 {[%clk 0:00:32]}  Nc5 {[%clk 0:00:27]} 30. Rc6 {[%clk 0:00:26]}  Na4 {[%clk 0:00:26]} 31. Rc7+ {[%clk 0:00:26]}  Kg8 {[%clk 0:00:25]} 32. c3 {[%clk 0:00:21]}  Nb6 {[%clk 0:00:19]} 33. Re6 {[%clk 0:00:18]}  Bxh4 {[%clk 0:00:18]} 34. Rxg6+ {[%clk 0:00:17]}  Kf8 {[%clk 0:00:18]} 35. Rh6 {[%clk 0:00:18]}  Bd8 {[%clk 0:00:17]} 36. Rh8# {[%clk 0:00:17]} 1-0


[Site "https://www.chess.com"]